[Event "Early-Titled-Tuesday-Blitz-March-05-2024"]
[Site "Chess.com"]
[Date "2024.03.05"]
[Round "2"]
[White "viviania"]
[Black "abc_xyz4744"]
[Result "1-0"]
[WhiteElo "2888"]
[BlackElo "2413"]
[TimeControl "180+1"]
[EndTime "8:18:55 PST"]
[Termination "viviania won by resignation"]

1. Nf3 {[%clk 0:02:53.6]} 1... d5 {[%clk 0:02:58.6]} 2. c4 {[%clk 0:02:53.4]}
2... c6 {[%clk 0:02:56.3]} 3. e3 {[%clk 0:02:52.6]} 3... Nf6 {[%clk 0:02:41.7]}
4. Nc3 {[%clk 0:02:52.7]} 4... g6 {[%clk 0:02:39.2]} 5. d4 {[%clk 0:02:52.1]}
5... Bg7 {[%clk 0:02:39.6]} 6. Bd3 {[%clk 0:02:52.8]} 6... dxc4 {[%clk
0:02:39.9]} 7. O-O {[%clk 0:02:53.7]} 7... cxd3 {[%clk 0:02:39.1]} 8. Qxd3
{[%clk 0:02:42.7]} 8... O-O {[%clk 0:02:38.5]} 9. e4 {[%clk 0:02:41.9]} 9... Bg4
{[%clk 0:02:27.7]} 10. Ne5 {[%clk 0:02:40.9]} 10... Be6 {[%clk 0:02:26.6]} 11.
h3 {[%clk 0:02:39.5]} 11... Nbd7 {[%clk 0:02:26.9]} 12. Nf3 {[%clk 0:02:39.3]}
12... Nb6 {[%clk 0:02:19.2]} 13. Rd1 {[%clk 0:02:36.7]} 13... Re8 {[%clk
0:02:17.2]} 14. Qc2 {[%clk 0:02:35.9]} 14... Qc7 {[%clk 0:02:16.2]} 15. b3
{[%clk 0:02:33.6]} 15... Rad8 {[%clk 0:02:16.5]} 16. Bb2 {[%clk 0:02:33.6]}
16... Qb8 {[%clk 0:02:14.1]} 17. Rac1 {[%clk 0:02:33.5]} 17... Bc8 {[%clk
0:02:12.5]} 18. Ne2 {[%clk 0:02:32]} 18... Nbd7 {[%clk 0:02:06.1]} 19. Ng3
{[%clk 0:02:26.8]} 19... h5 {[%clk 0:02:02.6]} 20. a4 {[%clk 0:02:24]} 20... Nf8
{[%clk 0:01:51.1]} 21. Rb1 {[%clk 0:02:16.6]} 21... N6d7 {[%clk 0:01:50.5]} 22.
d5 {[%clk 0:02:07.4]} 22... Bxb2 {[%clk 0:01:46.2]} 23. Qxb2 {[%clk 0:02:05.6]}
23... cxd5 {[%clk 0:01:46.4]} 24. Rxd5 {[%clk 0:02:05.7]} 24... Nf6 {[%clk
0:01:45.7]} 25. Rdd1 {[%clk 0:02:03.1]} 25... Ne6 {[%clk 0:01:37.6]} 26. b4
{[%clk 0:02:00.7]} 26... Qf4 {[%clk 0:01:31.5]} 27. Re1 {[%clk 0:01:59]} 27...
Ng5 {[%clk 0:01:22.1]} 28. Nxg5 {[%clk 0:01:56.4]} 28... Qxg5 {[%clk 0:01:23]}
29. e5 {[%clk 0:01:56.6]} 29... Nd5 {[%clk 0:01:23.1]} 30. Ne4 {[%clk
0:01:56.4]} 30... Qf4 {[%clk 0:01:16.6]} 31. Rbc1 {[%clk 0:01:48.2]} 31... Bf5
{[%clk 0:01:10.4]} 32. g3 {[%clk 0:01:43]} 32... Qh6 {[%clk 0:00:44.6]} 33. h4
{[%clk 0:01:37.2]} 33... Rc8 {[%clk 0:00:40.7]} 34. Ng5 {[%clk 0:01:34.8]} 34...
Qg7 {[%clk 0:00:37.3]} 35. Qd4 {[%clk 0:01:28.9]} 35... e6 {[%clk 0:00:25.7]}
36. Rxc8 {[%clk 0:01:22.6]} 36... Rxc8 {[%clk 0:00:25.2]} 37. Qxa7 {[%clk
0:01:22.7]} 37... Nxb4 {[%clk 0:00:21.6]} 38. Qxb7 {[%clk 0:01:22.4]} 38... Qf8
{[%clk 0:00:22.2]} 39. a5 {[%clk 0:00:44.1]} 39... Rb8 {[%clk 0:00:20.5]} 40.
Qd7 {[%clk 0:00:42.7]} 40... Nd5 {[%clk 0:00:20.5]} 41. a6 {[%clk 0:00:37.5]}
41... Qe8 {[%clk 0:00:21]} 42. a7 {[%clk 0:00:34.9]} 42... Ra8 {[%clk
0:00:19.5]} 43. Qb7 {[%clk 0:00:23.3]} 43... Kf8 {[%clk 0:00:19.4]} 44. Rc1
{[%clk 0:00:16.1]} 44... Ne7 {[%clk 0:00:16]} 45. Rc7 {[%clk 0:00:15.3]} 45...
Bd3 {[%clk 0:00:14.5]} 46. Rxe7 {[%clk 0:00:13.3]} 46... Qxe7 {[%clk 0:00:13.7]}
47. Qxa8+ {[%clk 0:00:12.8]} 47... Kg7 {[%clk 0:00:14.3]} 48. Qf3 {[%clk
0:00:11.8]} 1-0

[Event "Early-Titled-Tuesday-Blitz-March-05-2024"]
[Site "Chess.com"]
[Date "2024.03.05"]
[Round "2"]
[White "FREDERICKtheMATE"]
[Black "Angel_Hranitel_37"]
[Result "1-0"]
[WhiteElo "2723"]
[BlackElo "2512"]
[TimeControl "180+1"]
[EndTime "8:18:56 PST"]
[Termination "FREDERICKtheMATE won by resignation"]

1. Nf3 {[%clk 0:03:00.9]} 1... Nf6 {[%clk 0:02:59.5]} 2. d4 {[%clk 0:03:01.4]}
2... g6 {[%clk 0:03:00]} 3. c4 {[%clk 0:03:01.8]} 3... Bg7 {[%clk 0:03:00.6]} 4.
Nc3 {[%clk 0:03:02.4]} 4... d6 {[%clk 0:03:00.9]} 5. e4 {[%clk 0:03:02.1]} 5...
O-O {[%clk 0:03:01.6]} 6. Be2 {[%clk 0:03:02]} 6... e5 {[%clk 0:02:56.6]} 7. Be3
{[%clk 0:02:59.3]} 7... Bg4 {[%clk 0:02:54.1]} 8. d5 {[%clk 0:02:52.8]} 8...
Bxf3 {[%clk 0:02:53.7]} 9. Bxf3 {[%clk 0:02:53.2]} 9... Nfd7 {[%clk 0:02:53.8]}
10. g4 {[%clk 0:02:52.3]} 10... a5 {[%clk 0:02:52.7]} 11. Qd2 {[%clk 0:02:51]}
11... Na6 {[%clk 0:02:53.1]} 12. h4 {[%clk 0:02:49.5]} 12... f5 {[%clk
0:02:49.6]} 13. gxf5 {[%clk 0:02:48.6]} 13... gxf5 {[%clk 0:02:50.5]} 14. exf5
{[%clk 0:02:48.7]} 14... Rxf5 {[%clk 0:02:49.4]} 15. Bg4 {[%clk 0:02:47.5]}
15... Rf8 {[%clk 0:02:39.8]} 16. h5 {[%clk 0:02:39.9]} 16... Kh8 {[%clk
0:02:38.1]} 17. h6 {[%clk 0:02:39.6]} 17... Bf6 {[%clk 0:02:38.5]} 18. Bf5
{[%clk 0:02:32.6]} 18... Rg8 {[%clk 0:02:30.6]} 19. Ne4 {[%clk 0:02:30.3]} 19...
Nac5 {[%clk 0:02:27.3]} 20. Qc2 {[%clk 0:02:15.4]} 20... Nxe4 {[%clk 0:02:22.1]}
21. Qxe4 {[%clk 0:02:15.4]} 21... Qe7 {[%clk 0:02:23]} 22. O-O-O {[%clk
0:02:10]} 22... Bg5 {[%clk 0:02:23.5]} 23. f4 {[%clk 0:02:03.6]} 23... exf4
{[%clk 0:02:14.8]} 24. Bd4+ {[%clk 0:01:59.9]} 24... Ne5 {[%clk 0:02:12.3]} 25.
Be6 {[%clk 0:01:53]} 25... Rg6 {[%clk 0:01:56.3]} 26. Kb1 {[%clk 0:01:44.9]}
26... Rxh6 {[%clk 0:01:42.3]} 27. Bxe5+ {[%clk 0:01:38]} 27... dxe5 {[%clk
0:01:42.4]} 28. Qxe5+ {[%clk 0:01:38.4]} 28... Bf6 {[%clk 0:01:42.7]} 29. Qxf4
{[%clk 0:01:37]} 29... Rxh1 {[%clk 0:01:42.2]} 30. Rxh1 {[%clk 0:01:37.9]} 30...
Rf8 {[%clk 0:01:38.2]} 31. Qd2 {[%clk 0:01:16.5]} 31... Bg7 {[%clk 0:01:31.1]}
32. Qc2 {[%clk 0:01:09.3]} 32... h6 {[%clk 0:01:30.3]} 33. a3 {[%clk 0:01:05.8]}
33... Rf3 {[%clk 0:01:26.7]} 34. Rg1 {[%clk 0:00:51.4]} 34... Qf6 {[%clk
0:01:25.9]} 35. Rg2 {[%clk 0:00:48.1]} 35... Rxa3 {[%clk 0:01:19.1]} 36. Rf2
{[%clk 0:00:40.3]} 36... Rf3 {[%clk 0:00:55.3]} 37. Rxf3 {[%clk 0:00:34.8]}
37... Qxf3 {[%clk 0:00:56.2]} 38. Qa4 {[%clk 0:00:32.3]} 38... Qf6 {[%clk
0:00:52.6]} 39. Qe8+ {[%clk 0:00:30.9]} 39... Qf8 {[%clk 0:00:52.8]} 40. Qb5
{[%clk 0:00:28.7]} 40... b6 {[%clk 0:00:52.1]} 41. Ka2 {[%clk 0:00:28.6]} 41...
Be5 {[%clk 0:00:45.1]} 42. Qd7 {[%clk 0:00:26.5]} 42... h5 {[%clk 0:00:39.4]}
43. Bf5 {[%clk 0:00:24.5]} 43... Qg8 {[%clk 0:00:31.4]} 44. Qe7 {[%clk
0:00:19.2]} 44... Bd4 {[%clk 0:00:23.6]} 45. Qxc7 {[%clk 0:00:17.7]} 45... Qg2
{[%clk 0:00:23.3]} 46. Qd8+ {[%clk 0:00:14.9]} 46... Kg7 {[%clk 0:00:23.9]} 47.
Qe7+ {[%clk 0:00:14.5]} 47... Kg8 {[%clk 0:00:16.3]} 48. Be6+ {[%clk 0:00:13.8]}
48... Kh8 {[%clk 0:00:16.2]} 49. Qf8+ {[%clk 0:00:13.6]} 49... Kh7 {[%clk
0:00:16.8]} 50. Bf5+ {[%clk 0:00:13.6]} 1-0

[Event "Early-Titled-Tuesday-Blitz-March-05-2024"]
[Site "Chess.com"]
[Date "2024.03.05"]
[Round "2"]
[White "PattyCastillo"]
[Black "GilbertoHernandezAmura"]
[Result "0-1"]
[WhiteElo "2014"]
[BlackElo "2440"]
[TimeControl "180+1"]
[EndTime "8:18:56 PST"]
[Termination "GilbertoHernandezAmura won on time"]

1. d4 {[%clk 0:02:59.9]} 1... Nf6 {[%clk 0:02:58.4]} 2. Nf3 {[%clk 0:02:57.6]}
2... c5 {[%clk 0:02:57]} 3. e3 {[%clk 0:02:57.6]} 3... g6 {[%clk 0:02:50.9]} 4.
Be2 {[%clk 0:02:54.9]} 4... Bg7 {[%clk 0:02:50]} 5. O-O {[%clk 0:02:54.8]} 5...
O-O {[%clk 0:02:47.4]} 6. b3 {[%clk 0:02:53.1]} 6... Ne4 {[%clk 0:02:40.8]} 7.
Bb2 {[%clk 0:02:53.1]} 7... Nc6 {[%clk 0:02:39.2]} 8. Nbd2 {[%clk 0:02:47.9]}
8... d5 {[%clk 0:02:35.4]} 9. a3 {[%clk 0:02:32.3]} 9... b6 {[%clk 0:02:20.1]}
10. Rb1 {[%clk 0:02:27.9]} 10... Bb7 {[%clk 0:02:17.5]} 11. c4 {[%clk
0:02:27.3]} 11... e6 {[%clk 0:02:16.5]} 12. cxd5 {[%clk 0:02:21.1]} 12... exd5
{[%clk 0:02:07.9]} 13. Qc2 {[%clk 0:02:08.1]} 13... cxd4 {[%clk 0:02:01.6]} 14.
Nxd4 {[%clk 0:01:55.2]} 14... Rc8 {[%clk 0:01:57.4]} 15. Nxc6 {[%clk 0:01:53.4]}
15... Rxc6 {[%clk 0:01:56.3]} 16. Qd3 {[%clk 0:01:45.1]} 16... Ba6 {[%clk
0:01:42.8]} 17. Qxa6 {[%clk 0:01:38.9]} 17... Nxd2 {[%clk 0:01:43]} 18. Bxg7
{[%clk 0:01:38.1]} 18... Kxg7 {[%clk 0:01:40.8]} 19. Rbc1 {[%clk 0:01:33.4]}
19... Rxc1 {[%clk 0:01:13.5]} 20. Rxc1 {[%clk 0:01:33]} 20... Nxb3 {[%clk
0:01:13]} 21. Rb1 {[%clk 0:01:18.7]} 21... Nd2 {[%clk 0:01:10.8]} 22. Rd1 {[%clk
0:01:17]} 22... Ne4 {[%clk 0:01:09.7]} 23. Qd3 {[%clk 0:01:07.2]} 23... Qf6
{[%clk 0:01:07]} 24. Bf3 {[%clk 0:01:05.9]} 24... Re8 {[%clk 0:00:58]} 25. Bxe4
{[%clk 0:00:53.1]} 25... dxe4 {[%clk 0:00:57.6]} 26. Qd7 {[%clk 0:00:52.2]}
26... Re7 {[%clk 0:00:55.8]} 27. Qd8 {[%clk 0:00:48.2]} 27... h5 {[%clk
0:00:50.3]} 28. h3 {[%clk 0:00:48]} 28... h4 {[%clk 0:00:50.2]} 29. Rd6 {[%clk
0:00:43.4]} 29... Qa1+ {[%clk 0:00:48.4]} 30. Kh2 {[%clk 0:00:43.4]} 30... Qe5+
{[%clk 0:00:49.3]} 31. Kg1 {[%clk 0:00:42.3]} 31... Re8 {[%clk 0:00:41.4]} 32.
Qd7 {[%clk 0:00:39.1]} 32... Re7 {[%clk 0:00:29.1]} 33. Qd8 {[%clk 0:00:38.9]}
33... b5 {[%clk 0:00:24.3]} 34. Rd5 {[%clk 0:00:36.9]} 34... Qa1+ {[%clk
0:00:18]} 35. Kh2 {[%clk 0:00:37]} 35... Qxa3 {[%clk 0:00:18.9]} 36. Rxb5 {[%clk
0:00:25.4]} 36... a6 {[%clk 0:00:18.8]} 37. Rb8 {[%clk 0:00:24.5]} 37... Kf6
{[%clk 0:00:14.9]} 38. Qh8+ {[%clk 0:00:22.7]} 38... Ke6 {[%clk 0:00:15]} 39.
Rb6+ {[%clk 0:00:21.2]} 39... Kd7 {[%clk 0:00:15.6]} 40. Qd4+ {[%clk 0:00:20.4]}
40... Kc7 {[%clk 0:00:16.2]} 41. Rb2 {[%clk 0:00:14.5]} 41... Qd6+ {[%clk
0:00:15.9]} 42. Qxd6+ {[%clk 0:00:08.7]} 42... Kxd6 {[%clk 0:00:16.8]} 43. Rb6+
{[%clk 0:00:08.9]} 43... Kc5 {[%clk 0:00:17.3]} 44. Rxa6 {[%clk 0:00:09.2]}
44... Kc4 {[%clk 0:00:18.2]} 45. Rf6 {[%clk 0:00:09]} 45... Kd3 {[%clk
0:00:19.1]} 46. Rf4 {[%clk 0:00:08.8]} 46... Ke2 {[%clk 0:00:20]} 47. Rxh4
{[%clk 0:00:04.9]} 47... Kxf2 {[%clk 0:00:20.1]} 48. Rf4+ {[%clk 0:00:04.3]}
48... Kxe3 {[%clk 0:00:20.4]} 49. Kg3 {[%clk 0:00:04.4]} 49... Kd2 {[%clk
0:00:19.2]} 0-1

[Event "Early-Titled-Tuesday-Blitz-March-05-2024"]
[Site "Chess.com"]
[Date "2024.03.05"]
[Round "2"]
[White "Caroexpert"]
[Black "Indianlad"]
[Result "0-1"]
[WhiteElo "2613"]
[BlackElo "3013"]
[TimeControl "180+1"]
[EndTime "8:18:58 PST"]
[Termination "Indianlad won by resignation"]

1. d4 {[%clk 0:03:00.9]} 1... f5 {[%clk 0:02:57.5]} 2. Bg5 {[%clk 0:02:56.9]}
2... g6 {[%clk 0:02:56.7]} 3. e3 {[%clk 0:02:49.7]} 3... Bg7 {[%clk 0:02:56.4]}
4. Nc3 {[%clk 0:02:50]} 4... Nh6 {[%clk 0:02:55.6]} 5. Bc4 {[%clk 0:02:47.3]}
5... Nf7 {[%clk 0:02:54.9]} 6. Bf4 {[%clk 0:02:41.1]} 6... c6 {[%clk 0:02:51.4]}
7. Nf3 {[%clk 0:02:39.5]} 7... d5 {[%clk 0:02:51.3]} 8. Bd3 {[%clk 0:02:37.9]}
8... Nd7 {[%clk 0:02:51.7]} 9. Qd2 {[%clk 0:02:30.4]} 9... e5 {[%clk 0:02:51.7]}
10. dxe5 {[%clk 0:02:29.8]} 10... Ndxe5 {[%clk 0:02:51.8]} 11. Be2 {[%clk
0:02:26.1]} 11... Qe7 {[%clk 0:02:50.7]} 12. a3 {[%clk 0:02:23.2]} 12... Bd7
{[%clk 0:02:48.9]} 13. O-O {[%clk 0:02:23]} 13... O-O {[%clk 0:02:47]} 14. Rad1
{[%clk 0:02:23]} 14... Rae8 {[%clk 0:02:45.8]} 15. h3 {[%clk 0:01:59.2]} 15...
Kh8 {[%clk 0:02:35.3]} 16. Rfe1 {[%clk 0:01:50.6]} 16... Nxf3+ {[%clk
0:02:32.9]} 17. Bxf3 {[%clk 0:01:50.7]} 17... Ne5 {[%clk 0:02:31.7]} 18. Be2
{[%clk 0:01:50.1]} 18... g5 {[%clk 0:02:26.1]} 19. Bh2 {[%clk 0:01:49.3]} 19...
g4 {[%clk 0:02:22.5]} 20. hxg4 {[%clk 0:01:34]} 20... fxg4 {[%clk 0:02:22.2]}
21. Bf4 {[%clk 0:01:34.6]} 21... Ng6 {[%clk 0:02:19.2]} 22. g3 {[%clk 0:01:29]}
22... Nxf4 {[%clk 0:02:13.6]} 23. exf4 {[%clk 0:01:28.5]} 23... Qf6 {[%clk
0:02:08.5]} 24. Bd3 {[%clk 0:01:20.8]} 24... h5 {[%clk 0:02:05.6]} 25. Kg2
{[%clk 0:00:49.1]} 25... h4 {[%clk 0:02:04.1]} 26. gxh4 {[%clk 0:00:43.6]} 26...
Qxf4 {[%clk 0:01:59.8]} 27. Qxf4 {[%clk 0:00:42.9]} 27... Rxf4 {[%clk 0:01:59]}
28. Rxe8+ {[%clk 0:00:38.2]} 28... Bxe8 {[%clk 0:01:58.8]} 29. Ne2 {[%clk
0:00:38.2]} 29... Rf8 {[%clk 0:01:55.8]} 30. c3 {[%clk 0:00:35.6]} 30... c5
{[%clk 0:01:53.5]} 31. Ng3 {[%clk 0:00:33.6]} 31... Bc6 {[%clk 0:01:44.7]} 32.
Kg1 {[%clk 0:00:33.9]} 32... Be5 {[%clk 0:01:42.1]} 33. Be2 {[%clk 0:00:31.1]}
33... d4 {[%clk 0:01:33.3]} 34. c4 {[%clk 0:00:28.1]} 34... d3 {[%clk
0:01:25.8]} 35. Bxd3 {[%clk 0:00:21.2]} 35... Bxg3 {[%clk 0:01:23]} 36. fxg3
{[%clk 0:00:20.8]} 36... Rf3 {[%clk 0:01:22.6]} 37. b4 {[%clk 0:00:13.3]} 37...
Rxg3+ {[%clk 0:01:22.5]} 38. Kf2 {[%clk 0:00:13.7]} 38... Rh3 {[%clk 0:01:19.8]}
39. b5 {[%clk 0:00:12]} 39... g3+ {[%clk 0:01:18.7]} 40. Ke2 {[%clk 0:00:11.1]}
40... Be8 {[%clk 0:01:18.1]} 41. Rg1 {[%clk 0:00:10.3]} 41... Bh5+ {[%clk
0:01:17.7]} 42. Kd2 {[%clk 0:00:09.9]} 42... Bf3 {[%clk 0:01:14.5]} 43. Ke3
{[%clk 0:00:09.2]} 43... g2 {[%clk 0:01:13.6]} 44. Kf2 {[%clk 0:00:08.1]} 44...
Rh1 {[%clk 0:01:08.9]} 45. a4 {[%clk 0:00:06.1]} 45... Kg7 {[%clk 0:01:07.3]}
46. a5 {[%clk 0:00:03.9]} 46... b6 {[%clk 0:01:07.8]} 47. a6 {[%clk 0:00:03.2]}
47... Kh6 {[%clk 0:01:06.5]} 48. h5 {[%clk 0:00:02.4]} 48... Kxh5 {[%clk
0:01:05.1]} 49. Bf5 {[%clk 0:00:03]} 49... Kg5 {[%clk 0:01:04]} 50. Bd3 {[%clk
0:00:03.1]} 50... Kf4 {[%clk 0:01:02.9]} 51. Bc2 {[%clk 0:00:02]} 51... Rxg1
{[%clk 0:01:01.7]} 52. Kxg1 {[%clk 0:00:02]} 52... Ke3 {[%clk 0:01:01.8]} 53.
Bb3 {[%clk 0:00:02.1]} 53... Be2 {[%clk 0:01:00.7]} 54. Kxg2 {[%clk 0:00:02]}
54... Kd4 {[%clk 0:01:00.5]} 55. Kg3 {[%clk 0:00:02.5]} 55... Bxc4 {[%clk
0:01:01]} 56. Ba4 {[%clk 0:00:03.4]} 56... Kc3 {[%clk 0:00:59.7]} 57. Kf4 {[%clk
0:00:04]} 57... Kb4 {[%clk 0:00:58.9]} 58. Bd1 {[%clk 0:00:04.6]} 0-1

[Event "Early-Titled-Tuesday-Blitz-March-05-2024"]
[Site "Chess.com"]
[Date "2024.03.05"]
[Round "2"]
[White "Aleksandar-Topalov"]
[Black "only_strong_moves"]
[Result "0-1"]
[WhiteElo "2341"]
[BlackElo "2574"]
[TimeControl "180+1"]
[EndTime "8:18:58 PST"]
[Termination "only_strong_moves won by checkmate"]

1. b3 {[%clk 0:03:00.9]} 1... e5 {[%clk 0:02:59.2]} 2. Bb2 {[%clk 0:03:00.1]}
2... Nc6 {[%clk 0:03:00.1]} 3. e3 {[%clk 0:02:59]} 3... d5 {[%clk 0:03:00.7]} 4.
Bb5 {[%clk 0:02:58.7]} 4... Bd6 {[%clk 0:03:01.1]} 5. f4 {[%clk 0:02:58.5]} 5...
Qe7 {[%clk 0:02:58.1]} 6. Nf3 {[%clk 0:02:51.2]} 6... Bg4 {[%clk 0:02:56.2]} 7.
h3 {[%clk 0:02:48]} 7... Bxf3 {[%clk 0:02:54.8]} 8. Qxf3 {[%clk 0:02:48]} 8...
Nf6 {[%clk 0:02:55.1]} 9. O-O {[%clk 0:02:40.2]} 9... O-O {[%clk 0:02:48.4]} 10.
Bxc6 {[%clk 0:02:37.4]} 10... bxc6 {[%clk 0:02:49]} 11. fxe5 {[%clk 0:02:25.6]}
11... Bxe5 {[%clk 0:02:49.9]} 12. Bxe5 {[%clk 0:02:24.8]} 12... Qxe5 {[%clk
0:02:50.8]} 13. Nc3 {[%clk 0:02:24.4]} 13... Rad8 {[%clk 0:02:45.2]} 14. Qf4
{[%clk 0:02:13.3]} 14... Qe7 {[%clk 0:02:34.4]} 15. Rf2 {[%clk 0:01:44.8]} 15...
c5 {[%clk 0:02:33.2]} 16. Raf1 {[%clk 0:01:33]} 16... d4 {[%clk 0:02:31.5]} 17.
exd4 {[%clk 0:01:32.3]} 17... cxd4 {[%clk 0:02:30.3]} 18. Na4 {[%clk 0:00:51.3]}
18... Rfe8 {[%clk 0:02:24.9]} 19. d3 {[%clk 0:00:45.7]} 19... c5 {[%clk
0:02:22.9]} 20. Kh1 {[%clk 0:00:41.8]} 20... Rd5 {[%clk 0:02:04.4]} 21. Nb2
{[%clk 0:00:37.2]} 21... Nh5 {[%clk 0:01:56.9]} 22. Qf3 {[%clk 0:00:31.2]} 22...
Rg5 {[%clk 0:01:56.6]} 23. g4 {[%clk 0:00:29.9]} 23... Nf6 {[%clk 0:01:56.6]}
24. Nc4 {[%clk 0:00:19.7]} 24... h5 {[%clk 0:01:56.4]} 25. Rg1 {[%clk
0:00:18.3]} 25... hxg4 {[%clk 0:01:55.9]} 26. hxg4 {[%clk 0:00:18.5]} 26... Qe6
{[%clk 0:01:55.4]} 27. Qf4 {[%clk 0:00:13.7]} 27... Rxg4 {[%clk 0:01:45.3]} 28.
Rxg4 {[%clk 0:00:13.3]} 28... Qxg4 {[%clk 0:01:46.2]} 29. Qxg4 {[%clk
0:00:10.9]} 29... Nxg4 {[%clk 0:01:47.1]} 30. Rf5 {[%clk 0:00:10]} 30... Re1+
{[%clk 0:01:33.5]} 31. Kg2 {[%clk 0:00:09.9]} 31... Rc1 {[%clk 0:01:27.5]} 32.
Rxc5 {[%clk 0:00:08.5]} 32... Rxc2+ {[%clk 0:01:27.6]} 33. Kg3 {[%clk
0:00:08.2]} 33... Ne3 {[%clk 0:01:26.2]} 34. Rc8+ {[%clk 0:00:08]} 34... Kh7
{[%clk 0:01:26.4]} 35. Rc7 {[%clk 0:00:08.2]} 35... Nxc4 {[%clk 0:01:08.2]} 36.
bxc4 {[%clk 0:00:06.5]} 36... Rxa2 {[%clk 0:01:07]} 37. Rxf7 {[%clk 0:00:06.4]}
37... Ra3 {[%clk 0:01:07.7]} 38. Rf3 {[%clk 0:00:06.4]} 38... Rc3 {[%clk
0:01:08]} 39. Kf4 {[%clk 0:00:06.4]} 39... a5 {[%clk 0:01:08]} 40. Ke4 {[%clk
0:00:06.7]} 40... Rc1 {[%clk 0:01:08.9]} 41. Kxd4 {[%clk 0:00:06.8]} 41... a4
{[%clk 0:01:09.8]} 42. Rf2 {[%clk 0:00:06.9]} 42... Ra1 {[%clk 0:01:09.3]} 43.
Kc3 {[%clk 0:00:06]} 43... g5 {[%clk 0:01:08.9]} 44. Kb4 {[%clk 0:00:05.4]}
44... g4 {[%clk 0:01:08.8]} 45. c5 {[%clk 0:00:05.9]} 45... a3 {[%clk
0:01:08.2]} 46. Kb3 {[%clk 0:00:05.3]} 46... Kg6 {[%clk 0:01:01.7]} 47. Rc2
{[%clk 0:00:05.2]} 47... Rd1 {[%clk 0:00:54.2]} 48. c6 {[%clk 0:00:04.9]} 48...
Rxd3+ {[%clk 0:00:54.5]} 49. Ka2 {[%clk 0:00:05.2]} 49... Rd8 {[%clk 0:00:54.8]}
50. c7 {[%clk 0:00:05.7]} 50... Rc8 {[%clk 0:00:55.4]} 51. Kxa3 {[%clk
0:00:05.7]} 51... Kf5 {[%clk 0:00:56]} 52. Kb2 {[%clk 0:00:06.2]} 52... Kf4
{[%clk 0:00:56.3]} 53. Kb3 {[%clk 0:00:06.7]} 53... Kf3 {[%clk 0:00:56.6]} 54.
Kb4 {[%clk 0:00:07.3]} 54... g3 {[%clk 0:00:57.2]} 55. Kb5 {[%clk 0:00:07.4]}
55... g2 {[%clk 0:00:56.3]} 56. Rc1 {[%clk 0:00:06.2]} 56... Rxc7 {[%clk
0:00:55.7]} 57. Rxc7 {[%clk 0:00:05]} 57... g1=Q {[%clk 0:00:56.1]} 58. Rf7+
{[%clk 0:00:05.1]} 58... Ke4 {[%clk 0:00:56.1]} 59. Re7+ {[%clk 0:00:05.3]}
59... Kd5 {[%clk 0:00:55.7]} 60. Rd7+ {[%clk 0:00:05.4]} 60... Ke6 {[%clk
0:00:55.7]} 61. Rc7 {[%clk 0:00:04.8]} 61... Qb1+ {[%clk 0:00:54.7]} 62. Kc6
{[%clk 0:00:04]} 62... Qc2+ {[%clk 0:00:54.3]} 63. Kb7 {[%clk 0:00:04.2]} 63...
Qb3+ {[%clk 0:00:55.2]} 64. Kc6 {[%clk 0:00:04.3]} 64... Qc4+ {[%clk 0:00:54.8]}
65. Kb6 {[%clk 0:00:04.6]} 65... Qb4+ {[%clk 0:00:55.3]} 66. Kc6 {[%clk
0:00:04.9]} 66... Qa5 {[%clk 0:00:55]} 67. Kb7 {[%clk 0:00:03.9]} 67... Qb5+
{[%clk 0:00:55]} 68. Kc8 {[%clk 0:00:03.1]} 68... Kd6 {[%clk 0:00:55.6]} 69. Rb7
{[%clk 0:00:02.4]} 69... Qe8# {[%clk 0:00:55.1]} 0-1